{"text_format":"1","workbook":"xlsx","n_sheets":4,"sheets":["Import","View","Data","Notes"],"not_rendered":{"charts":0,"images":1,"macros":1,"external_links":0,"defined_names":0,"comments":0,"pivot_tables":0},"unopened":[],"bounds":{"document_bytes":16777216,"sheet_cells":100000,"rows_first":2000,"rows_last":500,"rows_between":2000,"halvings":0,"cell_chars":16384,"cell_head_chars":4096},"cells_cut":0,"cells_raw":0,"read":"whole","date_system":"1900"}

{"sheet":"Import","index":0,"n_rows":22,"n_cols":1,"rows_kept":22,"cut":false,"hidden":false,"merged":[]}
["SLM Data import"]
[]
[]
[]
[]
[]
["How does this worksheet work?"]
["This worksheet allows you to import SLM (SPL) measurements stored on the Bedrock SMxx. Make sure that the SLM result files are copied onto your computer, or that the instrument is attached to USB and accessible as a mass storage device. Then press the button below (\"Import SLM\"). You can now select the measurement data files that you wish to import. NOTE: by using SHIFT and CTRL you can select multiple files for opening. The measurements are imported into the sheet named \"Data.\" Use the sheet named \"View\" to browse through these measurements, or copy data directly from the \"Data\" sheet to your own Worksheet for further calculations. Note that importing data changes this worksheet, overwriting earlier data imports. We recommend that you keep the original version of this worksheet in a safe location, and that you use a new copy of this original file for each new project."]
[]
["NOTE: if an underrange or overload condition occurred during a sound level measurement, a range warning is stored with the data. This worksheet will display results obtained from such measurements on a yellow background. "]
[]
["For support or to download the latest version of this file, please refer to our website"]
["www.bedrock-audio.com"]
[]
["Version 2.6.1"]
[]
[]
["COPYRIGHT (C) Bedrock Audio BV, 2021"]
["ALL RIGHTS RESERVED. This worksheet contains material protected under International and Federal Copyright Laws and Treaties. Any unauthorized use of this material is prohibited. No part of this worksheet may be reproduced or transmitted in any form or by any means, electronic or mechanical, including photocopying, recording, or by any information storage and retrieval system without express written permission from the author. "]
[" "]
["DISCLAIMER"]
["THIS DOCUMENT IS PROVIDED \"AS IS\", WITHOUT WARRANTY OF ANY KIND, EXPRESS OR IMPLIED, INCLUDING BUT NOT LIMITED TO THE WARRANTIES OF MERCHANTABILITY, FITNESS FOR A PARTICULAR PURPOSE AND NONINFRINGEMENT. IN NO EVENT SHALL THE AUTHORS OR COPYRIGHT HOLDERS BE LIABLE FOR ANY CLAIM, DAMAGES OR OTHER LIABILITY, WHETHER IN AN ACTION OF CONTRACT, TORT OR OTHERWISE, ARISING FROM, OUT OF OR IN CONNECTION WITH THE SOFTWARE OR THE USE OR OTHER DEALINGS IN THE SOFTWARE"]

{"sheet":"View","index":1,"n_rows":47,"n_cols":3,"rows_kept":47,"cut":false,"hidden":false,"merged":[]}
["SLM measurement"]
[]
["Date",{"$f":"OFFSET(Data!B1,View!$B$39,0)","v":"00:00:00"}]
["Time",{"$f":"OFFSET(Data!C1,View!$B$39,0)","v":"00:00:00"}]
["Location"]
[]
["Duration [s]",{"$f":"OFFSET(Data!D1,View!$B$39,0)","v":0}]
[]
[]
["LZeq",{"$f":"OFFSET(Data!Q1,View!$B$39,0)","v":0}]
["LAeq",{"$f":"OFFSET(Data!E1,View!$B$39,0)","v":0}]
["LCeq",{"$f":"OFFSET(Data!K1,View!$B$39,0)","v":0}]
[]
["LZfmax",{"$f":"OFFSET(Data!R1,View!$B$39,0)","v":0}]
["LAfmax",{"$f":"OFFSET(Data!F1,View!$B$39,0)","v":0}]
["LCfmax",{"$f":"OFFSET(Data!L1,View!$B$39,0)","v":0}]
[]
["LZsmax",{"$f":"OFFSET(Data!S1,View!$B$39,0)","v":0}]
["LAsmax",{"$f":"OFFSET(Data!G1,View!$B$39,0)","v":0}]
["LCsmax",{"$f":"OFFSET(Data!M1,View!$B$39,0)","v":0}]
[]
["LZimax",{"$f":"OFFSET(Data!T1,View!$B$39,0)","v":0}]
["LAimax",{"$f":"OFFSET(Data!H1,View!$B$39,0)","v":0}]
["LCimax",{"$f":"OFFSET(Data!N1,View!$B$39,0)","v":0}]
[]
["LZpeak",{"$f":"OFFSET(Data!U1,View!$B$39,0)","v":0}]
["LApeak",{"$f":"OFFSET(Data!I1,View!$B$39,0)","v":0}]
["LCpeak",{"$f":"OFFSET(Data!O1,View!$B$39,0)","v":0}]
[]
["LZsel",{"$f":"OFFSET(Data!V1,View!$B$39,0)","v":0}]
["LAsel",{"$f":"OFFSET(Data!J1,View!$B$39,0)","v":0}]
["LCsel",{"$f":"OFFSET(Data!P1,View!$B$39,0)","v":0}]
[]
[null,"A yellow background in the cells above indicate a range warning"]
[]
[]
[]
["Filename",{"$f":"OFFSET(Data!A1,View!$B$39,0)","v":0}]
["Index",1]
["Note",{"$f":"OFFSET(Notes!B1,View!$B$39,0)&\"\"","v":""}]
[]
[]
[]
[]
["Warn Z",{"$f":"IF(OFFSET(Data!AA1,View!$B$39,0)<>\"\",OFFSET(Data!AA1,View!$B$39,0),View!B$46)","v":0},{"$f":"IF(OFFSET(Data!AB1,View!$B$39,0)<>\"\",OFFSET(Data!AB1,View!$B$39,0),View!C$46)","v":0}]
["Warn A",{"$f":"OFFSET(Data!W1,View!$B$39,0)","v":0},{"$f":"OFFSET(Data!X1,View!$B$39,0)","v":0}]
["Warn C",{"$f":"IF(OFFSET(Data!Y1,View!$B$39,0)<>\"\",OFFSET(Data!Y1,View!$B$39,0),View!B$46)","v":0},{"$f":"IF(OFFSET(Data!Z1,View!$B$39,0)<>\"\",OFFSET(Data!Z1,View!$B$39,0),View!C$46)","v":0}]

{"sheet":"Data","index":2,"n_rows":1,"n_cols":28,"rows_kept":1,"cut":false,"hidden":false,"merged":[]}
[null,"date","time","duration","LAeq","LAfmax","LAsmax","LAimax","LApeak","LAsel","LCeq","LCfmax","LCsmax","LCimax","LCpeak","LCsel","LZeq","LZfmax","LZsmax","LZimax","LZpeak","LZsel","RangeWarningA","RangeWarningAMax","RangeWarningC","RangeWarningCMax","RangeWarningZ","RangeWarningZMax"]

{"sheet":"Notes","index":3,"n_rows":0,"n_cols":0,"rows_kept":0,"cut":false,"hidden":false,"merged":[]}